bitfinex/quotes_SOLUSD_20230903
["timestamp","ask_amount","ask_price","bid_price","bid_amount"]
[1693784338251,26.35,19.61,19.595,11.80532]
[1693784338458,26.35,19.61,19.597,2.49999011]
[1693784339347,15.0642857,19.612,19.597,2.49999011]
[1693784340155,15.0642857,19.612,19.597,106.09064111]
[1693784340353,26.35,19.62,19.6,26.35]
[1693784340662,26.35,19.62,19.601,9.1157567]
[1693784340663,41.66836733,19.62,19.601,9.1157567]
[1693784340840,41.66836733,19.62,19.603,2.49999011]
[1693784341051,41.66836733,19.62,19.605,2.49999011]
[1693784341263,41.66836733,19.62,19.606,6.61407941]
[1693784341460,41.66836733,19.62,19.607,57.49999011]
[1693784341657,26.35,19.62,19.607,57.49999011]
[1693784342458,26.35,19.62,19.608,6.61340478]
[1693784342657,26.35,19.62,19.609,57.49999011]
[1693784343249,26.35,19.62,19.609,2.49999011]
[1693784343563,26.35,19.62,19.608,6.61340478]
[1693784344461,26.35,19.62,19.609,2.49999011]
[1693784348464,26.35,19.62,19.604,79.09461589]
[1693784348770,2.49999011,19.619,19.605,55.0]
[1693784349068,2.49999011,19.619,19.606,6.61865207]
[1693784349362,2.49999011,19.619,19.607,55.0]
[1693784353268,2.49999011,19.619,19.607,50.0]
[1693784368282,2.49999011,19.619,19.606,55.0]
[1693784375481,40.72653061,19.624,19.606,55.0]
[1693784375482,26.35,19.63,19.607,31.79809]
[1693784375696,26.62078486,19.627,19.608,55.0]
[1693784375869,2.49999011,19.626,19.609,20.0]
[1693784376178,26.35,19.63,19.609,20.0]
[1693784376179,82.20823557,19.63,19.61,93.14629]
[1693784376381,2.49999011,19.629,19.611,11.79569]
[1693784376682,2.49999011,19.629,19.612,147.50696815]
[1693784376867,2.49999011,19.629,19.612,159.30204815]
[1693784377077,2.49999011,19.629,19.613,11.79448]
[1693784377274,2.49999011,19.629,19.614,55.0]
[1693784377678,2.49999011,19.629,19.611,96.6059]
[1693784377985,26.35,19.62,19.603,63.28105716]
[1693784378165,26.35,19.62,19.606,20.0]
[1693784378369,26.35,19.62,19.607,6.61793873]
[1693784378778,26.35,19.62,19.608,20.0]
[1693784379881,26.35,19.62,19.609,55.0]
[1693784382688,26.35,19.62,19.607,6.61793873]
[1693784382985,26.35,19.62,19.598,6.62097789]
[1693784382986,107.0167473,19.619,19.598,6.62097789]
[1693784383293,26.35,19.61,19.598,6.62097789]
[1693784383491,2.49999011,19.609,19.598,6.62097789]
[1693784383888,26.35,19.61,19.598,6.62097789]
[1693784384088,2.49999011,19.609,19.598,6.62097789]
[1693784384389,26.35,19.61,19.598,6.62097789]
[1693784384990,2.49999011,19.609,19.598,6.62097789]
[1693784385194,26.35,19.61,19.598,6.62097789]
[1693784385493,2.49999011,19.609,19.599,55.0]
[1693784385679,26.35,19.61,19.599,55.0]
[1693784391090,2.49999011,19.609,19.599,55.0]
[1693784391293,22.49999011,19.617,19.599,55.0]
[1693784393787,26.35,19.61,19.599,55.0]
[1693784395296,2.49999011,19.609,19.599,55.0]
[1693784395496,26.35,19.61,19.599,55.0]
[1693784403493,2.49999011,19.616,19.6,26.35]
[1693784403696,2.49999011,19.617,19.601,80.61479988]
[1693784403894,26.35,19.62,19.601,80.61479988]
[1693784403895,2.49999011,19.619,19.602,11.8011]
[1693784404101,2.49999011,19.619,19.603,80.61479988]
[1693784404302,2.49999011,19.619,19.603,92.41529988]
[1693784405397,2.49999011,19.619,19.603,184.83059988]
[1693784406710,2.49999011,19.619,19.603,159.2158]
[1693784407708,2.49999011,19.619,19.603,104.2158]
[1693784407910,57.49999011,19.619,19.603,104.2158]
[1693784408103,57.49999011,19.619,19.603,92.4153]
[1693784408900,57.49999011,19.619,19.604,55.0]
[1693784409509,157.18929011,19.619,19.604,55.0]
[1693784410808,157.18929011,19.619,19.603,92.4153]
[1693784414511,183.82113401,19.619,19.603,92.4153]
[1693784415816,183.82113401,19.619,19.599,61.477]
[1693784416016,183.82113401,19.619,19.6,55.0]
[1693784416221,157.18929011,19.619,19.6,55.0]
[1693784418828,157.18929011,19.619,19.6,80.61479988]
[1693784428224,157.18929011,19.619,19.583,53.1988249]
[1693784428225,26.35,19.61,19.58,26.35]
[1693784428524,26.35,19.61,19.581,11.81376]
[1693784428525,26.35,19.6,19.581,11.81376]
[1693784428830,2.49999011,19.599,19.581,11.81376]
[1693784429210,2.49999011,19.599,19.581,38.16376]
[1693784431933,2.49999011,19.599,19.582,55.0]
[1693784432324,2.49999011,19.599,19.582,66.81316]
[1693784435735,2.49999011,19.599,19.582,11.81316]
[1693784437026,2.49999011,19.599,19.583,55.0]
[1693784448838,2.49999011,19.599,19.583,66.81255]
[1693784459354,2.49999011,19.599,19.583,11.81255]
[1693784459556,65.45899011,19.599,19.581,26.35]
[1693784459756,57.49999011,19.599,19.581,26.35]
[1693784460448,150.58109011,19.599,19.581,26.35]
[1693784460846,150.58109011,19.599,19.582,55.0]
[1693784461761,95.58109011,19.599,19.582,55.0]
[1693784462158,2.49999011,19.599,19.582,55.0]
[1693784463365,57.49999011,19.599,19.582,55.0]
[1693784466467,2.49999011,19.599,19.582,55.0]
[1693784467468,29.16072764,19.599,19.582,55.0]
[1693784470366,2.49999011,19.599,19.582,55.0]
[1693784471063,26.35,19.59,19.582,55.0]
[1693784471752,2.49999011,19.598,19.582,55.0]
[1693784472148,57.49999011,19.598,19.582,55.0]
[1693784474366,55.0,19.598,19.582,55.0]
[1693784474570,55.55748731,19.598,19.582,55.0]
[1693784480875,82.21945421,19.598,19.582,55.0]
[1693784483867,55.55748731,19.598,19.582,55.0]
[1693784485575,0.55748731,19.598,19.582,55.0]
[1693784488286,2.49999011,19.599,19.583,11.81255]
[1693784488591,42.70836599,19.605,19.584,55.0]
[1693784488895,57.86311572,19.605,19.585,11.81135]
[1693784489193,17.65473984,19.605,19.586,55.0]
[1693784490295,17.65473984,19.605,19.586,118.18937297]
[1693784490588,17.65473984,19.605,19.587,11.81014]
[1693784490786,17.65473984,19.605,19.588,55.0]
[1693784491391,17.65473984,19.605,19.588,147.9132]
[1693784491692,26.35,19.6,19.588,147.9132]
[1693784492390,26.35,19.6,19.588,55.0]
[1693784493397,26.35,19.6,19.588,81.35]
[1693784495093,26.35,19.61,19.59,26.35]
[1693784495284,2.49999011,19.609,19.591,129.99710297]
[1693784495488,2.49999011,19.609,19.592,11.80713]
[1693784495686,2.49999011,19.609,19.593,118.18937297]
[1693784495884,2.49999011,19.609,19.593,129.99589297]
[1693784522518,26.35,19.61,19.593,188.0907826]
[1693784522709,401.4,19.611,19.593,188.0907826]
[1693784522909,1.2601887,19.61,19.593,188.0907826]
[1693784524620,2.49999011,19.616,19.593,188.0907826]
[1693784524815,99.5067,19.617,19.593,188.0907826]
[1693784524816,2.49999011,19.617,19.593,188.0907826]
[1693784525118,22.49999011,19.617,19.593,188.0907826]
[1693784525618,62.89611057,19.617,19.594,11.80592]
[1693784525820,70.84811057,19.617,19.595,118.18937297]
[1693784526010,121.87811057,19.617,19.595,118.18937297]
[1693784526217,26.35,19.61,19.596,11.80472]
[1693784526408,26.35,19.61,19.597,55.0]
[1693784526723,26.35,19.61,19.598,11.80351]
[1693784527027,26.35,19.61,19.599,55.0]
[1693784541722,2.49999011,19.616,19.6,11.80231]
[1693784541925,2.49999011,19.616,19.601,55.0]
[1693784542121,55.96579886,19.617,19.601,55.0]
[1693784542329,15.5696784,19.617,19.601,55.0]
[1693784543728,15.5696784,19.617,19.601,106.129833]
[1693784545037,0.71357931,19.616,19.601,106.129833]
[1693784545224,15.5696784,19.617,19.601,106.129833]
[1693784545938,15.5696784,19.617,19.602,11.8011]
[1693784546131,15.5696784,19.617,19.603,55.0]
[1693784546724,66.69285714,19.62,19.603,55.0]
[1693784547039,1.01228653,19.619,19.603,55.0]
[1693784558446,26.35,19.62,19.603,118.18937297]
[1693784558747,26.35,19.62,19.604,63.18937297]
[1693784558945,26.35,19.62,19.605,66.7993]
[1693784559153,26.35,19.62,19.606,11.79869]
[1693784559339,26.35,19.62,19.607,55.0]
[1693784560546,26.35,19.62,19.607,118.189373]
[1693784575261,39.76595238,19.626,19.607,118.189373]
[1693784575451,26.35,19.63,19.608,83.18937297]
[1693784575657,119.3252,19.63,19.609,11.79689]
[1693784575850,26.61971632,19.629,19.61,55.0]
[1693784576645,26.61971632,19.629,19.61,66.79629]
[1693784578254,26.61971632,19.629,19.61,93.14629]
[1693784578462,26.61971632,19.629,19.611,11.79569]
[1693784578753,41.65290667,19.63,19.612,55.0]
[1693784578961,41.65290667,19.63,19.613,11.79448]
[1693784579160,41.65290667,19.63,19.614,55.0]
[1693784579582,41.65290667,19.63,19.614,66.79388]
[1693784579745,0.6006807,19.629,19.614,66.79388]
[1693784580455,41.65290667,19.63,19.614,66.79388]
[1693784580649,41.65290667,19.63,19.614,108.446786]
[1693784581360,66.43273942,19.63,19.614,53.446786]
[1693784581667,79.77983275,19.629,19.608,63.18937297]
[1693784581850,2.49999011,19.628,19.609,20.0]
[1693784582161,26.35,19.62,19.609,20.0]
[1693784582547,26.35,19.62,19.609,46.35]
[1693784582862,26.35,19.62,19.61,55.0]
[1693784588767,26.35,19.62,19.609,46.35]
[1693784594755,26.35,19.62,19.61,55.0]
[1693784603667,401.4,19.631,19.611,25.61479988]
[1693784603857,26.35,19.63,19.612,118.18937297]
[1693784604052,26.35,19.63,19.613,25.61479988]
[1693784604262,26.35,19.63,19.614,118.18937297]
[1693784606166,26.35,19.63,19.614,155.59805285]
[1693784607673,26.35,19.63,19.615,25.61479988]
[1693784607966,26.35,19.63,19.616,129.98205297]
[1693784608369,26.35,19.63,19.616,155.59685285]
[1693784608566,26.35,19.63,19.617,11.79208]
[1693784608867,26.35,19.63,19.618,55.0]
[1693784609068,26.35,19.63,19.618,66.79148]
[1693784615284,51.03,19.637,19.618,129.98085297]
[1693784615467,99.7347,19.639,19.619,120.59505285]
[1693784615666,55.5699354,19.638,19.62,55.0]
[1693784615874,55.0,19.638,19.62,55.0]
[1693784616077,0.56010151,19.637,19.62,55.0]
[1693784616466,67.52491075,19.64,19.62,81.35]
[1693784616779,55.0,19.639,19.62,93.14028]
[1693784617173,0.6927659,19.638,19.62,93.14028]
[1693784617480,0.6927659,19.639,19.62,118.75507988]
[1693784617683,83.00833756,19.64,19.62,118.75507988]
[1693784617973,0.65704715,19.639,19.621,11.78967]
[1693784618180,83.00833756,19.64,19.622,55.0]
[1693784618374,56.22131017,19.639,19.622,55.0]
[1693784619780,1.22131017,19.639,19.622,118.189373]
[1693784619971,55.72131017,19.639,19.622,117.189373]
[1693784620179,55.0,19.639,19.622,117.189373]
[1693784621377,0.54424213,19.638,19.622,117.189373]
[1693784622469,83.00833756,19.64,19.623,11.78847]
[1693784622663,83.00833756,19.64,19.624,55.0]
[1693784633894,39.76595238,19.645,19.623,11.78847]
[1693784634195,26.35,19.65,19.623,11.78847]
[1693784634196,94.7786,19.646,19.624,95.33241957]
[1693784634383,94.7786,19.646,19.625,25.61479988]
[1693784634586,68.04215086,19.65,19.626,58.09488963]
[1693784634786,92.3067,19.649,19.627,45.61479988]
[1693784634986,1.50607386,19.648,19.627,45.61479988]
[1693784635382,1.99999011,19.649,19.63,26.35]
[1693784635587,1.99999011,19.649,19.631,55.0]
[1693784635787,91.34029502,19.65,19.631,66.78367]
[1693784635988,1.29968765,19.649,19.631,66.78367]
[1693784636292,0.56311812,19.649,19.631,66.78367]
[1693784636701,0.56311812,19.649,19.631,11.78367]
[1693784636895,0.56311812,19.649,19.631,78.56734]
[1693784637103,0.56311812,19.649,19.631,66.78367]
[1693784637290,26.35,19.64,19.631,66.78367]
[1693784638695,26.35,19.64,19.627,20.0]
[1693784638900,26.35,19.64,19.628,55.0]
[1693784639204,26.35,19.64,19.629,20.0]
[1693784639397,26.35,19.64,19.63,55.0]
[1693784639904,26.35,19.64,19.63,109.551295]
[1693784640398,26.35,19.64,19.624,49.71761969]
[1693784640602,0.50305931,19.639,19.618,133.4273092]
[1693784640802,55.0,19.639,19.624,64.0501]
[1693784641192,0.49705544,19.638,19.624,64.0501]
[1693784641606,55.0,19.639,19.624,64.0501]
[1693784641904,26.35,19.64,19.624,64.0501]
[1693784642798,26.35,19.64,19.625,55.0]
[1693784643397,26.35,19.64,19.625,66.78727]
[1693784644195,26.35,19.64,19.626,11.78667]
[1693784644398,26.35,19.64,19.627,55.0]
[1693784647116,26.35,19.64,19.626,11.78667]
[1693784648398,26.35,19.64,19.627,55.0]
[1693784655602,26.35,19.64,19.627,66.78607]
[1693784673622,26.35,19.64,19.627,11.78607]
[1693784673827,55.0,19.639,19.627,11.78607]
[1693784674030,154.0235,19.639,19.627,11.78607]
[1693784676325,154.0235,19.639,19.623,58.094889]
[1693784677023,154.0235,19.639,19.624,55.0]
[1693784677325,154.0235,19.639,19.623,58.094889]
[1693784677621,154.0235,19.639,19.624,55.0]
[1693784684122,154.0235,19.639,19.623,58.094889]
[1693784684325,178.80333275,19.639,19.619,1.0]
[1693784684522,24.77983275,19.638,19.619,21.0]
[1693784684720,55.0,19.637,19.619,21.0]
[1693784684921,55.0,19.637,19.619,83.182271]
[1693784685929,55.0,19.637,19.62,55.0]
[1693784686832,55.0,19.637,19.619,83.182271]
[1693784687016,26.35,19.63,19.619,83.182271]
[1693784688531,26.35,19.63,19.62,55.0]
[1693784689326,24.77983275,19.638,19.62,55.0]
[1693784689531,155.60963658,19.639,19.62,55.0]
[1693784689532,55.0,19.637,19.62,55.0]
[1693784689717,55.0,19.638,19.62,55.0]
[1693784690629,0.89569304,19.637,19.62,55.0]
[1693784690831,55.0,19.638,19.62,55.0]
[1693784691732,149.8412,19.638,19.62,55.0]
[1693784700340,0.77356547,19.637,19.62,55.0]
[1693784700533,55.0,19.638,19.62,55.0]
[1693784700739,145.2869,19.638,19.62,55.0]
[1693784700921,0.80122135,19.637,19.62,55.0]
[1693784704626,1.73764727,19.638,19.62,55.0]
[1693784705027,1.73764727,19.638,19.62,144.16427777]
[1693784706242,1.73764727,19.638,19.62,155.95455777]
[1693784707336,56.58613658,19.639,19.62,155.95455777]
[1693784707641,1.59107588,19.638,19.62,155.95455777]
[1693784709546,1.59107588,19.638,19.62,129.60455777]
[1693784711349,1.59107588,19.638,19.62,155.95455777]
[1693784712444,1.59107588,19.638,19.62,129.60455777]
[1693784716149,26.37090863,19.638,19.62,74.60455777]
[1693784717647,26.37090863,19.638,19.621,55.0]
[1693784719139,24.77983275,19.638,19.621,55.0]
[1693784743971,26.35,19.64,19.622,62.81427777]
[1693784744154,26.35,19.64,19.623,55.0]
[1693784745251,26.35,19.64,19.624,11.78787]
[1693784745455,26.35,19.64,19.625,55.0]
[1693784747165,26.35,19.64,19.625,95.444444]
[1693784751665,26.35,19.64,19.626,11.78667]
[1693784751863,26.35,19.64,19.627,55.0]
[1693784752260,15.02446482,19.644,19.627,55.0]
[1693784752757,26.35,19.64,19.627,55.0]
[1693784753771,39.79215485,19.646,19.628,11.78547]
[1693784753970,26.35,19.64,19.629,55.0]
[1693784757868,24.55033293,19.645,19.629,55.0]
[1693784762078,0.55159572,19.644,19.629,55.0]
[1693784762859,24.55033293,19.645,19.629,55.0]
[1693784763270,0.55698957,19.644,19.629,55.0]
[1693784763662,24.55033293,19.645,19.629,55.0]
[1693784764574,0.5239772,19.644,19.629,55.0]
[1693784765372,15.08405501,19.646,19.629,55.0]
[1693784765676,26.35,19.64,19.629,55.0]
[1693784771472,15.08405501,19.646,19.63,11.78427]
[1693784771668,15.08405501,19.646,19.631,55.0]
[1693784771865,15.08405501,19.646,19.631,66.78367]
[1693784772267,26.35,19.65,19.631,66.78367]
[1693784772466,1.47765965,19.649,19.631,66.78367]
[1693784772675,1.47765965,19.649,19.632,11.78307]
[1693784772880,1.47765965,19.649,19.633,55.0]
[1693784774781,26.35,19.65,19.633,55.0]
[1693784774983,1.14197351,19.649,19.633,55.0]
[1693784777793,1.14197351,19.649,19.634,11.78187]
[1693784778076,1.14197351,19.649,19.635,55.0]
[1693784784291,26.35,19.65,19.635,55.0]
[1693784784693,0.55589859,19.649,19.635,55.0]
[1693784784988,26.35,19.65,19.635,55.0]
[1693784789093,0.67330739,19.649,19.635,55.0]
[1693784803515,26.35,19.65,19.635,55.0]
[1693784803905,0.5533413,19.649,19.635,55.0]
[1693784807712,0.5533413,19.649,19.634,11.78187]
[1693784809019,0.5533413,19.649,19.635,55.0]
[1693784815023,0.5533413,19.649,19.634,11.78187]
[1693784815219,55.5533413,19.649,19.634,11.78187]
[1693784815515,55.5533413,19.649,19.632,55.0]
[1693784816425,55.5533413,19.649,19.633,55.0]
[1693784827534,26.35,19.64,19.625,45.73566806]
[1693784827825,26.35,19.64,19.626,59.3074]
[1693784828336,26.35,19.64,19.626,62.814278]
[1693784829135,26.35,19.64,19.627,55.0]
[1693784838630,41.71067243,19.64,19.627,55.0]
[1693784847338,41.71067243,19.64,19.627,80.61479988]
[1693784847649,26.35,19.64,19.628,25.61479988]
[1693784847841,26.35,19.64,19.629,55.0]
[1693784863769,26.35,19.64,19.628,55.0]
[1693784866081,26.35,19.64,19.627,55.0]
[1693784873588,26.35,19.64,19.626,62.814278]
[1693784873785,0.86352597,19.639,19.622,62.81427777]
[1693784873983,55.86352597,19.639,19.622,62.81427777]
[1693784874185,7.944,19.638,19.622,62.81427777]
[1693784874379,1.43002422,19.637,19.622,97.10727777]
[1693784875178,1.99999011,19.638,19.623,55.0]
[1693784879890,1.99999011,19.638,19.622,97.10727777]
[1693784880391,1.99999011,19.638,19.623,55.0]
[1693784881086,1.99999011,19.638,19.622,97.10727777]
[1693784882192,1.99999011,19.638,19.623,55.0]
[1693784883092,26.35,19.63,19.623,55.0]
[1693784884089,26.35,19.63,19.622,97.10727777]
[1693784884389,26.35,19.63,19.623,55.0]
[1693784887296,1.99999011,19.637,19.623,55.0]
[1693784890094,26.35,19.63,19.623,55.0]
[1693784896808,1.99999011,19.637,19.623,55.0]
[1693784907812,26.35,19.63,19.623,55.0]
[1693784913118,26.35,19.63,19.622,34.293]
[1693784913304,1.99999011,19.629,19.616,64.81427777]
[1693784914137,1.49999011,19.629,19.616,64.81427777]
[1693784914929,1.49999011,19.629,19.617,55.0]
[1693784915127,26.35,19.63,19.618,3.0]
[1693784915508,1.49999011,19.629,19.618,3.0]
[1693784915715,1.49999011,19.629,19.617,3.0]
[1693784915927,107.52999011,19.629,19.617,3.0]
[1693784916125,107.52999011,19.629,19.613,3.0]
[1693784916318,107.52999011,19.629,19.613,65.81427777]
[1693784916629,107.52999011,19.629,19.613,128.62855577]
[1693784919108,134.1457721,19.629,19.613,128.62855577]
[1693784922227,107.52999011,19.629,19.613,128.62855577]
[1693784922416,26.35,19.62,19.613,65.814278]
[1693784922617,26.35,19.62,19.613,3.0]
[1693784922813,26.35,19.62,19.61,3.0]
[1693784923518,26.35,19.62,19.61,122.63411055]
[1693784924016,26.35,19.62,19.611,55.0]
[1693784924217,1.49999011,19.628,19.612,3.0]
[1693784924519,26.35,19.62,19.612,3.0]
[1693784924719,26.35,19.62,19.601,3.0]
[1693784924915,55.0,19.619,19.601,3.0]
[1693784925122,26.35,19.62,19.602,11.8011]
[1693784925311,26.35,19.62,19.603,3.0]
[1693784925513,26.35,19.62,19.604,55.65555888]
[1693784925717,26.35,19.62,19.606,3.0]
[1693784925925,26.35,19.62,19.606,14.79869]
[1693784926124,26.35,19.62,19.608,3.0]
[1693784927632,26.35,19.62,19.608,58.0]
[1693784927829,26.35,19.62,19.609,55.0]
[1693784928029,26.35,19.62,19.61,3.0]
[1693784932524,1.47027451,19.627,19.61,41.14629]
[1693784932718,15.47271799,19.629,19.612,3.0]
[1693784932919,15.47271799,19.629,19.613,11.79448]
[1693784933119,15.47271799,19.629,19.615,3.0]
[1693784933326,0.53222798,19.628,19.615,3.0]
[1693784936021,1.34650697,19.629,19.615,3.0]
[1693784947647,39.32654266,19.63,19.615,3.0]
[1693784951256,39.32654266,19.63,19.614,4.79112722]
[1693784952458,39.32654266,19.63,19.615,55.0]
[1693784952642,39.32654266,19.63,19.616,4.79112722]
[1693784953352,90.35654266,19.63,19.616,4.79112722]
[1693784959457,39.32654266,19.63,19.617,55.0]
[1693784959658,39.32654266,19.63,19.618,4.79112722]
[1693784960357,39.32654266,19.63,19.614,4.79112722]
[1693784960555,39.32654266,19.63,19.615,55.0]
[1693784960755,39.32654266,19.63,19.616,4.79112722]
[1693784961058,39.32654266,19.63,19.618,4.79112722]
[1693784969852,38.32654266,19.63,19.618,4.79112722]
[1693784970267,38.32654266,19.63,19.618,2.29112722]
[1693784971764,38.32654266,19.63,19.615,2.29112722]
[1693784973257,38.32654266,19.63,19.615,57.29112722]
[1693784981461,38.32654266,19.63,19.615,2.29112722]
[1693784981661,55.0,19.629,19.615,2.29112722]
[1693784985565,55.0,19.629,19.614,2.29112722]
[1693784985777,55.0,19.629,19.614,57.29112722]
[1693785000382,55.0,19.629,19.614,2.29112722]
[1693785000787,26.61818668,19.628,19.614,2.29112722]
[1693785000988,55.0,19.627,19.614,2.29112722]
[1693785001185,151.8597,19.627,19.614,2.29112722]
[1693785001393,202.8897,19.627,19.614,2.29112722]
[1693785002478,202.8897,19.627,19.612,2.29112722]
[1693785002678,202.8897,19.627,19.612,57.29112722]
[1693785003287,202.8897,19.627,19.612,2.29112722]
[1693785003584,202.8897,19.627,19.61,59.58225522]
[1693785003792,202.8897,19.627,19.611,55.0]
[1693785003990,202.8897,19.627,19.612,2.29112722]
[1693785004494,202.8897,19.627,19.606,2.29112722]
[1693785004693,202.8897,19.627,19.606,22.29112722]
[1693785005293,202.8897,19.627,19.607,55.65555888]
[1693785005597,202.8897,19.627,19.609,2.29112722]
[1693785006079,202.8897,19.627,19.609,57.29112722]
[1693785011695,244.0768494,19.627,19.609,57.29112722]
[1693785014298,26.61968243,19.626,19.609,57.29112722]
[1693785014605,55.0,19.625,19.609,57.29112722]
[1693785015089,26.35,19.62,19.609,57.29112722]
[1693785037015,15.13768484,19.623,19.609,57.29112722]
[1693785050328,51.03,19.626,19.609,57.29112722]
[1693785050529,55.0,19.625,19.609,57.29112722]
[1693785054133,51.5,19.625,19.609,57.29112722]
[1693785054337,51.03,19.626,19.609,57.29112722]
[1693785062736,26.35,19.62,19.609,2.29112722]
[1693785063044,26.35,19.62,19.602,2.29112722]
[1693785063244,26.35,19.62,19.601,2.29112722]
[1693785063837,26.35,19.62,19.601,54.23696122]
[1693785064236,26.35,19.62,19.602,55.0]
[1693785064447,26.35,19.62,19.603,2.29112722]
[1693785069943,91.589,19.619,19.603,2.29112722]
[1693785077360,55.0,19.618,19.602,2.29112722]
[1693785078459,55.0,19.618,19.602,57.29112722]
[1693785079550,55.0,19.618,19.602,2.29112722]
[1693785079746,26.35,19.61,19.602,2.29112722]
[1693785079946,26.35,19.61,19.591,2.29112722]
[1693785080150,26.35,19.61,19.592,11.80713]
[1693785080363,26.35,19.61,19.593,2.29112722]
[1693785080561,91.9805,19.609,19.593,2.29112722]
[1693785080856,91.9805,19.609,19.593,54.23696122]
[1693785081944,55.0,19.608,19.593,2.29112722]
[1693785083564,55.0,19.608,19.593,57.29112722]
[1693785085661,107.2697857,19.609,19.593,57.29112722]
[1693785090957,147.70243876,19.609,19.593,57.29112722]
[1693785106681,147.70243876,19.609,19.593,2.29112722]
[1693785106979,55.0,19.608,19.593,2.29112722]
[1693785108167,55.0,19.608,19.593,57.29112722]
[1693785114996,55.0,19.608,19.593,2.29112722]
[1693785115596,55.0,19.608,19.592,57.29112722]
[1693785116295,55.0,19.608,19.592,2.29112722]
[1693785116599,55.0,19.608,19.587,22.29112722]
[1693785116799,55.0,19.608,19.588,55.0]
[1693785117097,55.0,19.608,19.589,94.17981922]
[1693785117282,55.0,19.608,19.591,2.29112722]
[1693785119199,51.03,19.607,19.591,2.29112722]
[1693785119395,51.03,19.605,19.591,2.29112722]
[1693785119705,26.35,19.6,19.591,2.29112722]
[1693785121993,26.35,19.6,19.588,56.29112722]
[1693785122291,26.35,19.6,19.589,20.0]
[1693785122486,26.35,19.6,19.59,1.29112722]
[1693785124807,26.35,19.6,19.59,0.29112722]
[1693785132298,41.76500765,19.6,19.59,0.29112722]
[1693785137713,1.70887277,19.599,19.59,0.29112722]
[1693785138009,56.70887277,19.599,19.59,0.29112722]
[1693785158222,1.70887277,19.599,19.59,0.29112722]
[1693785163719,56.70887277,19.599,19.59,0.29112722]
[1693785167934,64.66787277,19.599,19.59,0.29112722]
[1693785168230,7.96,19.596,19.59,0.29112722]
[1693785168435,76.70887277,19.595,19.59,0.29112722]
[1693785168731,7.961,19.594,19.59,0.29112722]
[1693785168939,51.03,19.592,19.59,0.29112722]
[1693785169119,107.73887277,19.591,19.573,62.1412]
[1693785169325,107.73887277,19.591,19.57,26.35]
[1693785169326,26.35,19.59,19.57,26.35]
[1693785169541,55.0,19.589,19.57,26.35]
[1693785170124,55.0,19.589,19.57,74.863885]
[1693785170524,55.0,19.589,19.571,55.0]
[1693785172326,26.35,19.59,19.571,66.81979]
[1693785172529,26.35,19.59,19.571,115.33367547]
[1693785177339,445.56252382,19.598,19.571,115.33367547]
[1693785177340,26.67338941,19.592,19.58,26.35]
[1693785177530,2.29112721,19.599,19.581,81.76028108]
[1693785177731,2.29112721,19.599,19.582,55.0]
[1693785177935,2.29112721,19.599,19.582,124.94652108]
[1693785179133,2.29112721,19.599,19.582,166.71152908]
[1693785180654,2.29112721,19.599,19.582,111.71152908]
[1693785180836,57.29112721,19.599,19.582,111.71152908]
[1693785183440,2.29112721,19.599,19.583,55.0]
[1693785183645,2.29112721,19.599,19.583,124.94652108]
[1693785183949,2.29112721,19.599,19.584,85.90770861]
[1693785184147,2.29112721,19.599,19.585,124.94652108]
[1693785191354,2.29112721,19.599,19.585,69.94652108]
[1693785192848,2.29112721,19.599,19.586,55.0]
[1693785203360,2.29112721,19.599,19.582,41.765008]
[1693785203562,57.29112721,19.599,19.582,41.765008]
[1693785204764,57.29112721,19.599,19.583,55.0]
[1693785207464,98.1900036,19.599,19.583,55.0]